bitfinex-derivatives/quotes_BTCF0:USTF0_20241109
["timestamp","ask_amount","ask_price","bid_price","bid_amount"]
[1731180133233,0.19618268,76496.0,76489.0,0.116326]
[1731180133427,0.426879,76497.0,76489.0,0.116326]
[1731180133622,0.426119,76497.0,76489.0,0.116326]
[1731180133825,0.19658933,76496.0,76489.0,0.116326]
[1731180134626,0.12555276,76494.0,76489.0,0.051]
[1731180134926,0.19705867,76493.0,76489.0,0.051]
[1731180136526,0.19705867,76493.0,76489.0,0.116326]
[1731180136929,0.19705867,76493.0,76491.0,0.065324]
[1731180137232,0.36156,76505.0,76492.0,0.48635276]
[1731180137424,0.39937233,76505.0,76499.0,0.065317]
[1731180137619,0.1947927,76495.0,76494.0,0.065322]
[1731180137821,0.1947927,76504.0,76494.0,0.0529]
[1731180138140,0.3608,76505.0,76503.0,0.065314]
[1731180138322,0.3608,76505.0,76504.0,0.0542]
[1731180138528,0.065304,76515.0,76507.0,0.06531]
[1731180138933,0.19509892,76512.0,76507.0,0.06531]
[1731180139624,0.32065168,76512.0,76507.0,0.06531]
[1731180141632,0.32065168,76512.0,76504.0,0.0542]
[1731180142330,0.32065168,76512.0,76505.0,0.065312]
[1731180142833,0.32065168,76512.0,76504.0,0.0542]
[1731180143132,0.19509892,76512.0,76504.0,0.0542]
[1731180143331,0.19509892,76512.0,76511.0,0.065307]
[1731180144639,0.19509892,76512.0,76504.0,0.0542]
[1731180144827,0.19509892,76512.0,76508.0,0.065309]
[1731180145024,0.19509892,76512.0,76510.0,0.065308]
[1731180146544,0.12555276,76511.0,76505.0,0.065312]
[1731180146731,0.12555276,76511.0,76504.0,0.0542]
[1731180147035,0.19663726,76510.0,76507.0,0.06531]
[1731180147226,0.19663726,76510.0,76509.0,0.065309]
[1731180147426,0.19663726,76511.0,76509.0,0.065309]
[1731180147836,0.19663726,76511.0,76504.0,0.0542]
[1731180147837,0.3608,76513.0,76510.0,0.065308]
[1731180148032,0.3608,76513.0,76510.0,0.069378]
[1731180148240,0.1961059,76511.0,76510.0,0.069378]
[1731180148430,0.3608,76513.0,76510.0,0.069378]
[1731180148431,0.3608,76513.0,76510.0,0.00407]
[1731180148742,0.3608,76513.0,76512.0,0.065306]
[1731180152045,0.065306,76512.0,76510.0,0.00407]
[1731180152436,0.19605459,76511.0,76510.0,0.00407]
[1731180153446,0.19706113,76512.0,76510.0,0.00407]
[1731180153642,0.48715276,76513.0,76510.0,0.00407]
[1731180153943,0.19688877,76512.0,76510.0,0.00407]
[1731180154344,0.065307,76511.0,76510.0,0.00407]
[1731180154731,0.26071318,76511.0,76510.0,0.00407]
[1731180157238,0.26071318,76511.0,76491.0,0.03944845]
[1731180157239,0.19540618,76511.0,76487.0,0.10303211]
[1731180157440,0.3608,76499.0,76487.0,0.0511]
[1731180157643,0.3608,76499.0,76492.0,0.065323]
[1731180157845,0.19579061,76498.0,76492.0,0.065323]
[1731180158338,0.19579061,76498.0,76487.0,0.09076522]
[1731180158541,0.19579061,76498.0,76495.0,0.06532]
[1731180160650,0.19579061,76498.0,76493.0,0.03006629]
[1731180160840,0.19579061,76498.0,76493.0,0.09538829]
[1731180163149,0.19579061,76498.0,76494.0,0.065321]
[1731180164745,0.06532,76496.0,76490.0,0.065325]
[1731180165149,0.19667211,76495.0,76490.0,0.065325]
[1731180167442,0.26199311,76495.0,76486.0,0.08199981]
[1731180167856,0.065321,76495.0,76486.0,0.08199981]
[1731180168241,0.19494977,76494.0,76486.0,0.08199981]
[1731180168743,0.19494977,76494.0,76486.0,0.0300677]
[1731180169944,0.19494977,76494.0,76487.0,0.065327]
[1731180171255,0.19494977,76494.0,76486.0,0.0300677]
[1731180171754,0.3608,76496.0,76486.0,0.0300677]
[1731180171755,0.3608,76496.0,76495.0,0.065321]
[1731180173252,0.3608,76496.0,76492.0,0.03855735]
[1731180173458,0.3608,76496.0,76490.0,0.17748487]
[1731180173961,0.3608,76496.0,76490.0,0.24280987]
[1731180174361,0.3608,76496.0,76491.0,0.05193211]
[1731180174547,0.3608,76496.0,76490.0,0.19087776]
[1731180175760,0.3608,76496.0,76490.0,0.16485333]
[1731180176348,0.065319,76497.0,76490.0,0.16485333]
[1731180176552,0.04018937,76504.0,76492.0,0.065323]
[1731180176553,0.065321,76495.0,76492.0,0.065323]
[1731180180759,0.3608,76499.0,76492.0,0.065323]
[1731180180964,0.065322,76494.0,76492.0,0.065323]
[1731180183661,0.19697464,76493.0,76488.0,0.42569914]
[1731180183956,0.065322,76493.0,76491.0,0.05208504]
[1731180184362,0.19730954,76492.0,76491.0,0.05208504]
[1731180184674,0.19730954,76492.0,76491.0,0.05210447]
[1731180187266,0.1954033,76493.0,76491.0,0.05210447]
[1731180187469,0.3608,76494.0,76491.0,0.05210447]
[1731180187864,0.19515925,76493.0,76491.0,0.05210447]
[1731180189171,0.19515925,76493.0,76490.0,0.05210447]
[1731180192275,0.26048225,76493.0,76490.0,0.05210447]
[1731180192575,0.065325,76490.0,76489.0,0.05210447]
[1731180192871,0.065327,76488.0,76485.0,0.05210447]
[1731180193071,0.065327,76488.0,76479.0,0.0485]
[1731180193072,0.3608,76486.0,76484.0,0.11743447]
[1731180193273,0.3608,76486.0,76484.0,0.05210447]
[1731180193573,0.19587565,76485.0,76484.0,0.05210447]
[1731180193974,0.19587565,76485.0,76483.0,0.05210447]
[1731180194481,0.19587565,76485.0,76478.0,0.00196101]
[1731180194482,0.065331,76483.0,76481.0,0.05210447]
[1731180194771,0.065334,76479.0,76478.0,0.00196101]
[1731180194978,0.426134,76479.0,76478.0,0.00196101]
[1731180195278,0.62230147,76479.0,76478.0,0.00196101]
[1731180199776,0.66264225,76479.0,76478.0,0.00196101]
[1731180201687,0.59730825,76479.0,76478.0,0.00196101]
[1731180201877,0.55696747,76479.0,76478.0,0.00196101]
[1731180203080,0.55696747,76479.0,76478.0,0.06729601]
[1731180208089,0.19616747,76479.0,76478.0,0.06729601]
[1731180208277,0.55696747,76479.0,76478.0,0.06729601]
[1731180208588,0.3608,76479.0,76478.0,0.06729601]
[1731180208883,0.55703393,76479.0,76478.0,0.06729601]
[1731180209287,0.63784914,76479.0,76478.0,0.06729601]
[1731180210884,0.70318314,76479.0,76478.0,0.00196101]
[1731180211088,0.065338,76475.0,76473.0,0.03901167]
[1731180211276,0.08081521,76474.0,76470.0,0.03901167]
[1731180211481,0.08081521,76474.0,76467.0,0.47883967]
[1731180211482,0.08081521,76471.0,76469.0,0.03901167]
[1731180211776,0.19534215,76470.0,76469.0,0.03901167]
[1731180212781,0.19534215,76470.0,76468.0,0.065343]
[1731180216691,0.19534215,76470.0,76469.0,0.065343]
[1731180217176,0.3608,76476.0,76469.0,0.05201467]
[1731180217382,0.3608,76476.0,76475.0,0.065338]
[1731180217581,0.39933102,76476.0,76475.0,0.065338]
[1731180217792,0.59574313,76476.0,76475.0,0.1043626]
[1731180218293,0.59574313,76476.0,76475.0,0.065338]
[1731180218592,0.59574313,76476.0,76474.0,0.05201467]
[1731180219078,0.23494313,76476.0,76473.0,0.05201467]
[1731180219281,0.06534,76473.0,76470.0,0.05201467]
[1731180219586,0.08081521,76471.0,76467.0,0.065344]
[1731180219983,0.1951208,76470.0,76467.0,0.10438245]
[1731180221892,0.1951208,76470.0,76467.0,0.065344]
[1731180222997,0.065346,76466.0,76464.0,0.00068]
[1731180223187,0.08081521,76465.0,76464.0,0.03909507]
[1731180223393,0.27579947,76465.0,76462.0,0.03909507]
[1731180224290,0.065347,76464.0,76459.0,0.03909507]
[1731180224490,0.065347,76464.0,76457.0,0.11736667]
[1731180224491,0.3608,76460.0,76457.0,0.11736667]
[1731180224693,0.3608,76460.0,76458.0,0.065352]
[1731180224885,0.19687185,76459.0,76458.0,0.065352]
[1731180225287,0.19687185,76459.0,76456.0,0.05201467]
[1731180225486,0.19687185,76459.0,76457.0,0.065353]
[1731180225892,0.19687185,76459.0,76458.0,0.065352]
[1731180227595,0.19687185,76459.0,76458.0,0.16497021]
[1731180228183,0.19687185,76459.0,76458.0,0.23009936]
[1731180228388,0.19687185,76459.0,76458.0,0.16497021]
[1731180228784,0.19687185,76459.0,76458.0,0.23009903]
[1731180229294,0.19687185,76459.0,76458.0,0.13048082]
[1731180229488,0.19687185,76459.0,76458.0,0.23009879]
[1731180230001,0.19687185,76459.0,76458.0,0.23010065]
[1731180230192,0.19687185,76459.0,76458.0,0.065352]
[1731180230394,0.19687185,76459.0,76458.0,0.16496962]
[1731180230697,0.19687185,76459.0,76458.0,0.23008959]
[1731180230994,0.19687185,76459.0,76458.0,0.16496789]
[1731180231799,0.19687185,76459.0,76458.0,0.13047173]
[1731180231996,0.19687185,76459.0,76458.0,0.16496842]
[1731180232500,0.19650696,76463.0,76460.0,0.06535]
[1731180232800,0.065347,76465.0,76460.0,0.06535]
[1731180232801,0.19689438,76464.0,76460.0,0.06535]
[1731180233096,0.1049718,76465.0,76460.0,0.06535]
[1731180233285,0.1049718,76465.0,76452.0,0.3608]
[1731180233286,0.065352,76459.0,76458.0,0.06512761]
[1731180233493,0.065352,76459.0,76457.0,0.06512761]
[1731180233695,0.26224638,76459.0,76456.0,0.06512761]
[1731180234692,0.26224638,76459.0,76458.0,0.0390808]
[1731180235491,0.26224638,76459.0,76457.0,0.0390808]
[1731180236990,0.26224638,76459.0,76456.0,0.0390808]
[1731180237198,0.26224638,76459.0,76455.0,0.0390808]
[1731180238596,0.26224638,76459.0,76454.0,0.1044358]
[1731180238806,0.19689438,76459.0,76454.0,0.0390808]
[1731180238992,0.065353,76458.0,76453.0,0.0390808]
[1731180239195,0.12594021,76455.0,76453.0,0.0390808]
[1731180239596,0.19673827,76454.0,76450.0,0.1428808]
[1731180239791,0.19673827,76454.0,76450.0,0.1038]
[1731180240114,0.26209427,76454.0,76447.0,0.065362]
[1731180240306,0.12594021,76449.0,76447.0,0.065362]
[1731180240704,0.1954209,76448.0,76447.0,0.065362]
[1731180241307,0.1954209,76448.0,76446.0,0.00196184]
[1731180241308,0.065362,76447.0,76446.0,0.00196184]
[1731180241500,0.065365,76444.0,76437.0,0.0390812]
[1731180241803,0.48674021,76440.0,76436.0,0.0390812]
[1731180242117,0.19690351,76439.0,76434.0,0.065373]
[1731180242802,0.19690351,76439.0,76438.0,0.0390812]
[1731180243408,0.19690351,76439.0,76435.0,0.05210774]
[1731180243607,0.19690351,76439.0,76438.0,0.03903342]
[1731180244702,0.19690351,76439.0,76438.0,0.10440242]
[1731180246310,0.19690351,76439.0,76438.0,0.10438702]
[1731180246809,0.19690351,76439.0,76438.0,0.065369]
[1731180247001,0.19690351,76439.0,76438.0,0.10438702]
[1731180247209,0.19690351,76439.0,76438.0,0.065369]
[1731180247408,0.13118853,76453.0,76438.0,0.18527555]
[1731180247597,0.1506,76457.0,76448.0,0.065361]
[1731180247803,0.44168853,76456.0,76448.0,0.065361]
[1731180247996,0.19566109,76449.0,76448.0,0.065361]
[1731180248211,0.23437799,76449.0,76448.0,0.065361]
[1731180248405,0.0387169,76449.0,76448.0,0.10437902]
[1731180248605,0.44244853,76456.0,76452.0,0.065357]
[1731180248801,0.44244853,76456.0,76454.0,0.065355]
[1731180248802,0.36156,76456.0,76454.0,0.065355]
[1731180249007,0.19659795,76455.0,76454.0,0.065355]
[1731180249201,0.3608,76456.0,76454.0,0.10436679]
[1731180249402,0.1506,76466.0,76454.0,0.03901179]
[1731180249604,0.04121264,76465.0,76461.0,0.065349]
[1731180249803,0.19659795,76461.0,76460.0,0.065351]
[1731180250008,0.00196315,76465.0,76463.0,0.065348]
[1731180250209,0.00196315,76465.0,76464.0,0.0546]
[1731180251206,0.00196315,76465.0,76464.0,0.09361179]
[1731180251412,0.19125868,76481.0,76476.0,0.065337]
[1731180251612,0.19125868,76481.0,76478.0,0.065335]
[1731180251812,0.19692699,76480.0,76478.0,0.065335]
[1731180254716,0.19692699,76480.0,76470.0,0.0537]
[1731180255022,0.12592568,76475.0,76473.0,0.065339]
[1731180255314,0.12592568,76475.0,76469.0,0.3608]
[1731180255514,0.06534,76473.0,76460.0,0.00068]
[1731180255720,0.12592568,76467.0,76463.0,0.065348]
[1731180256107,0.12592568,76467.0,76464.0,0.065347]
[1731180256108,0.19717442,76466.0,76464.0,0.065347]
[1731180257717,0.40096242,76475.0,76474.0,0.065339]
[1731180258106,0.19648585,76475.0,76474.0,0.065339]
[1731180258418,0.19648585,76478.0,76466.0,0.3608]
[1731180258626,0.19648585,76478.0,76476.0,0.065337]
[1731180258913,0.18891016,76479.0,76476.0,0.065337]
[1731180259118,0.19625914,76478.0,76476.0,0.065337]
[1731180262705,0.19625914,76478.0,76477.0,0.065336]
[1731180263317,0.19644243,76482.0,76477.0,0.065336]
[1731180263524,0.40001649,76483.0,76477.0,0.065336]
[1731180263909,0.19644243,76482.0,76466.0,0.3608]
[1731180264118,0.19644243,76482.0,76469.0,0.12592568]
[1731180264622,0.19644243,76482.0,76478.0,0.065335]
[1731180265308,0.19644243,76482.0,76470.0,0.0505]
[1731180265514,0.26177443,76482.0,76470.0,0.0505]
[1731180265823,0.26177443,76482.0,76474.0,0.065339]
[1731180266024,0.26177443,76482.0,76475.0,0.065338]
[1731180266323,0.065335,76479.0,76470.0,0.0505]
[1731180266619,0.32186197,76478.0,76471.0,0.065341]
[1731180268311,0.32186197,76478.0,76470.0,0.0505]
[1731180268523,0.32186197,76478.0,76473.0,0.065339]
[1731180271923,0.065341,76472.0,76463.0,0.065348]
[1731180272225,0.065341,76472.0,76458.0,0.0389204]
[1731180272226,0.32206517,76471.0,76458.0,0.0389204]
[1731180272519,0.32206517,76471.0,76463.0,0.065348]
[1731180273521,0.19613949,76471.0,76457.0,0.39945655]
[1731180273727,0.19613949,76471.0,76465.0,0.065346]
[1731180276925,0.065343,76470.0,76465.0,0.065346]
[1731180277319,0.19548763,76469.0,76465.0,0.065346]
[1731180279330,0.26083063,76469.0,76457.0,0.39988782]
[1731180279523,0.26083063,76469.0,76461.0,0.06535]
[1731180279725,0.065343,76469.0,76461.0,0.06535]
[1731180279924,0.065343,76469.0,76467.0,0.0521171]
[1731180280132,0.19488627,76468.0,76467.0,0.0521171]
[1731180280332,0.26023027,76468.0,76467.0,0.0521171]
[1731180281026,0.26023027,76468.0,76466.0,0.0521171]
[1731180283332,0.19488627,76468.0,76467.0,0.065345]
[1731180283521,0.19488627,76468.0,76467.0,0.1174621]
[1731180283726,0.19488627,76468.0,76467.0,0.065345]
[1731180284127,0.19608434,76471.0,76467.0,0.065345]
[1731180284333,0.065337,76476.0,76470.0,0.065342]
[1731180284534,0.065337,76476.0,76473.0,0.03909995]
[1731180284830,0.19608434,76476.0,76473.0,0.03909995]
[1731180285140,0.19608434,76476.0,76474.0,0.03909995]
[1731180285332,0.26142134,76476.0,76473.0,0.03909995]
[1731180286230,0.26142134,76476.0,76474.0,0.03909995]
[1731180286533,0.26142134,76476.0,76473.0,0.03909995]
[1731180286725,0.26142134,76476.0,76474.0,0.03909995]
[1731180286928,0.26142134,76476.0,76471.0,0.065341]
[1731180287430,0.0808249,76475.0,76470.0,0.159]
[1731180287637,0.1461629,76475.0,76470.0,0.159]
[1731180287829,0.19585337,76474.0,76470.0,0.159]
[1731180290928,0.0808249,76471.0,76470.0,0.159]
[1731180291430,0.27606619,76471.0,76470.0,0.1081]
[1731180291826,0.27606619,76471.0,76470.0,0.0548]
[1731180292729,0.29454691,76471.0,76470.0,0.0548]
[1731180292925,0.27606619,76471.0,76470.0,0.0548]
[1731180293126,0.29454753,76471.0,76470.0,0.0548]
[1731180294634,0.35988953,76471.0,76462.0,0.10444895]
[1731180294831,0.0808249,76465.0,76462.0,0.065349]
[1731180295034,0.0808249,76465.0,76462.0,0.13049537]
[1731180295839,0.0808249,76465.0,76462.0,0.065349]
[1731180296842,0.196661,76464.0,76462.0,0.065349]
[1731180298033,0.196661,76464.0,76462.0,0.13049537]
[1731180298236,0.196661,76464.0,76462.0,0.06514637]
[1731180298536,0.196661,76464.0,76461.0,0.06514637]
[1731180300335,0.065349,76462.0,76461.0,0.06514637]
[1731180300543,0.065349,76462.0,76458.0,0.05342]
[1731180300544,0.3608,76462.0,76458.0,0.11784637]
[1731180300740,0.0808249,76459.0,76458.0,0.0527]
[1731180301037,0.27660814,76459.0,76456.0,0.06514637]
[1731180301443,0.0808249,76457.0,76451.0,0.06514637]
[1731180301637,0.4416249,76452.0,76447.0,0.0671082]
[1731180301838,0.0808249,76448.0,76447.0,0.00196183]
[1731180302144,0.27797551,76448.0,76447.0,0.10159535]
[1731180302335,0.27797551,76448.0,76447.0,0.00196183]
[1731180304246,0.27797551,76448.0,76447.0,0.05406641]
[1731180304643,0.27797551,76448.0,76447.0,0.00196183]
[1731180306039,0.34333651,76448.0,76447.0,0.00196183]
[1731180309253,0.065363,76446.0,76444.0,0.03905564]
[1731180309444,0.065364,76445.0,76443.0,0.03905564]
[1731180309641,0.4416249,76444.0,76443.0,0.03905564]
[1731180310042,0.63793412,76444.0,76440.0,0.0517]
[1731180310446,0.63793412,76444.0,76436.0,0.14245564]
[1731180310447,0.065365,76443.0,76437.0,0.06539]
[1731180310648,0.0808249,76440.0,76437.0,0.06539]
[1731180311049,0.19582343,76439.0,76436.0,0.1034]
[1731180312048,0.19582343,76439.0,76427.0,0.169779]
[1731180312249,0.0808249,76434.0,76427.0,0.169779]
[1731180312640,0.0521,76443.0,76427.0,0.1044]
[1731180312641,0.0808249,76430.0,76427.0,0.1044]
[1731180312844,0.0808249,76430.0,76428.0,0.065378]
[1731180314052,0.0808249,76430.0,76428.0,0.07183695]
[1731180315153,0.19697188,76429.0,76428.0,0.065378]
[1731180315856,0.19697188,76431.0,76428.0,0.07200447]
[1731180316154,0.12605337,76432.0,76428.0,0.07200447]
[1731180316350,0.1957788,76431.0,76428.0,0.07200447]
[1731180316756,0.065378,76428.0,76426.0,0.03878183]
[1731180316944,0.065378,76428.0,76423.0,0.00664807]
[1731180317144,0.19682042,76427.0,76419.0,0.03905564]
[1731180317357,0.19682042,76427.0,76424.0,0.065381]
[1731180317564,0.19682042,76428.0,76424.0,0.065381]
[1731180317752,0.3608,76437.0,76424.0,0.00648121]
[1731180317946,0.149,76432.0,76431.0,0.065375]
[1731180318150,0.02014014,76436.0,76425.0,0.3608]
[1731180318151,0.19708731,76431.0,76425.0,0.3608]
[1731180318451,0.12605337,76430.0,76423.0,0.03905564]
[1731180318754,0.32314068,76430.0,76428.0,0.065378]
[1731180318952,0.12605337,76430.0,76428.0,0.065378]
[1731180319359,0.19713085,76429.0,76428.0,0.065378]
[1731180319752,0.16441301,76429.0,76428.0,0.065378]
[1731180320251,0.19687133,76436.0,76433.0,0.065374]
[1731180320454,0.19687133,76435.0,76433.0,0.065374]
[1731180320655,0.19687133,76436.0,76433.0,0.065374]
[1731180321057,0.51056,76437.0,76433.0,0.065374]
[1731180321253,0.19748449,76436.0,76433.0,0.065374]
[1731180322670,0.32353786,76436.0,76429.0,0.065377]
[1731180323666,0.32353786,76436.0,76429.0,0.10443264]
[1731180323854,0.32353786,76436.0,76430.0,0.03905564]
[1731180324459,0.32353786,76436.0,76424.0,0.3608]
[1731180324460,0.065372,76435.0,76433.0,0.03905564]
[1731180324664,0.065372,76435.0,76429.0,0.03905564]
[1731180324855,0.195221,76434.0,76429.0,0.03905564]
[1731180325165,0.19683865,76435.0,76429.0,0.065376]
[1731180325469,0.12605337,76436.0,76429.0,0.065376]
[1731180325659,0.12605337,76430.0,76424.0,0.426181]
[1731180326061,0.19683865,76429.0,76424.0,0.065381]
[1731180327056,0.19683865,76429.0,76418.0,0.14655564]
[1731180327257,0.19683865,76429.0,76426.0,0.06538]
[1731180328558,0.19683865,76429.0,76427.0,0.065379]
[1731180328759,0.23601608,76429.0,76427.0,0.065379]
[1731180329059,0.03917743,76429.0,76427.0,0.065379]
[1731180329359,0.19692005,76428.0,76427.0,0.065379]
[1731180329863,0.19142437,76436.0,76428.0,0.065378]
[1731180329864,0.19692005,76430.0,76428.0,0.065378]
[1731180330063,0.065372,76435.0,76428.0,0.065378]
[1731180330371,0.19696105,76429.0,76428.0,0.065378]
[1731180330763,0.065372,76435.0,76428.0,0.065378]
[1731180331061,0.19696105,76429.0,76428.0,0.065378]
[1731180331262,0.19696105,76432.0,76424.0,0.10443664]
[1731180331263,0.12605337,76430.0,76424.0,0.10443664]
[1731180331565,0.19655387,76429.0,76425.0,0.06538]
[1731180331766,0.19655387,76429.0,76424.0,0.03905564]
[1731180331961,0.3608,76430.0,76429.0,0.065377]
[1731180332361,0.55786996,76430.0,76429.0,0.065377]
[1731180333271,0.55786996,76430.0,76428.0,0.05210458]
[1731180333272,0.62324696,76430.0,76428.0,0.05210458]
[1731180333469,0.62324696,76430.0,76427.0,0.05210458]
[1731180333670,0.12605337,76428.0,76424.0,0.065381]
[1731180333870,0.12605337,76428.0,76425.0,0.06538]
[1731180334072,0.19735748,76427.0,76425.0,0.06538]
[1731180335270,0.19735748,76427.0,76417.0,0.49465565]
[1731180335271,0.065381,76424.0,76422.0,0.06517609]
[1731180335573,0.19600021,76423.0,76422.0,0.06517609]
[1731180335774,0.19600021,76423.0,76422.0,0.16484068]
[1731180336071,0.19600021,76425.0,76422.0,0.09966459]
[1731180336376,0.0809529,76426.0,76424.0,0.06522026]
[1731180336676,0.27611321,76425.0,76424.0,0.06522026]
[1731180337058,0.0809529,76425.0,76424.0,0.06522026]
[1731180337272,0.27612922,76425.0,76424.0,0.06522026]
[1731180338168,0.27612922,76425.0,76424.0,0.16504557]
[1731180338471,0.27612922,76425.0,76424.0,0.23028649]
[1731180338676,0.27612922,76425.0,76424.0,0.23028655]
[1731180339277,0.27612922,76425.0,76424.0,0.16504557]
[1731180339973,0.19517632,76425.0,76424.0,0.16504557]
[1731180340163,0.19517632,76425.0,76424.0,0.11759805]
[1731180340364,0.01957156,76425.0,76424.0,0.11760505]
[1731180340566,0.149,76428.0,76427.0,0.065385]
[1731180340767,0.16857152,76428.0,76427.0,0.065385]
[1731180340983,0.36469794,76428.0,76427.0,0.065385]
[1731180341170,0.44565084,76428.0,76427.0,0.065385]
[1731180342375,0.29665084,76428.0,76427.0,0.065385]
[1731180345071,0.29665084,76428.0,76427.0,0.11760205]
[1731180345380,0.21569794,76428.0,76427.0,0.065385]
[1731180346283,0.57649794,76428.0,76427.0,0.065385]
[1731180346483,0.21569794,76428.0,76427.0,0.11762951]
[1731180346973,0.21569794,76428.0,76427.0,0.065385]
[1731180347374,0.21569794,76428.0,76427.0,0.16504769]
[1731180348172,0.19612642,76428.0,76427.0,0.16504769]
[1731180348476,0.19711826,76430.0,76427.0,0.09966451]
[1731180348683,0.19711826,76430.0,76429.0,0.1306952]
[1731180348872,0.0809529,76430.0,76429.0,0.1306952]
[1731180349073,0.27807116,76430.0,76429.0,0.1306952]
[1731180349380,0.0809529,76430.0,76429.0,0.1306952]
[1731180349583,0.0809529,76430.0,76429.0,0.065384]
[1731180349783,0.27729817,76430.0,76429.0,0.065384]
[1731180349983,0.63809817,76430.0,76429.0,0.065384]
[1731180352487,0.63809817,76430.0,76429.0,0.1306952]
[1731180352781,0.63809817,76430.0,76429.0,0.065384]
[1731180358975,0.27729817,76430.0,76429.0,0.065384]
[1731180359180,0.63809817,76430.0,76429.0,0.065384]
[1731180360482,0.27729817,76430.0,76429.0,0.065384]
[1731180360683,0.63809817,76430.0,76429.0,0.065384]
[1731180361387,0.63805697,76430.0,76429.0,0.065384]
[1731180361786,0.65751283,76430.0,76429.0,0.065384]
[1731180362388,0.71900987,76430.0,76423.0,0.03920763]
[1731180362584,0.0809529,76425.0,76424.0,0.065388]
[1731180362979,0.27742797,76425.0,76424.0,0.065388]
[1731180368792,0.21534375,76425.0,76424.0,0.065388]
[1731180369198,0.21534375,76425.0,76424.0,0.228388]
[1731180370288,0.19647507,76425.0,76424.0,0.228388]
[1731180370496,0.19647507,76425.0,76424.0,0.32804753]
[1731180370695,0.19598485,76426.0,76425.0,0.065387]
[1731180370897,0.19598485,76429.0,76425.0,0.16504653]
[1731180371196,0.0809529,76431.0,76430.0,0.065383]
[1731180371591,0.27774302,76431.0,76430.0,0.065383]
[1731180372502,0.19679012,76431.0,76430.0,0.065383]
[1731180376202,0.19679012,76431.0,76430.0,0.426183]
[1731180376391,0.19679012,76431.0,76430.0,0.59115993]
[1731180376591,0.19679012,76431.0,76430.0,0.5911599]
[1731180376793,0.19679012,76431.0,76430.0,0.49150844]
[1731180377099,0.19679012,76431.0,76430.0,0.426183]
[1731180377799,0.19679012,76431.0,76430.0,0.46534884]
[1731180378104,0.19679012,76431.0,76430.0,0.426183]
[1731180378405,0.03866538,76436.0,76430.0,0.426183]
[1731180378698,0.065362,76454.0,76445.0,0.06537]
[1731180378901,0.3608,76455.0,76445.0,0.06537]
[1731180378902,0.03976616,76449.0,76445.0,0.06537]
[1731180379092,0.19908841,76446.0,76445.0,0.06537]
[1731180381602,0.19908841,76446.0,76445.0,0.1463229]
[1731180381903,0.0809529,76458.0,76457.0,0.06536]
[1731180382207,0.12108993,76458.0,76457.0,0.06536]
[1731180382395,0.23508393,76458.0,76457.0,0.06536]
[1731180382898,0.00076,76462.0,76457.0,0.81852]
[1731180383198,0.4417529,76476.0,76461.0,0.0809529]
[1731180383391,0.3608,76476.0,76470.0,0.065348]
[1731180383596,0.3608,76476.0,76471.0,0.065348]
[1731180383597,0.1950549,76474.0,76471.0,0.065348]
[1731180383992,0.1614,76475.0,76459.0,0.00196]
[1731180384192,0.0809529,76460.0,76459.0,0.00196]
[1731180384700,0.27580533,76460.0,76459.0,0.00196]
[1731180385291,0.19485243,76460.0,76459.0,0.00196]
[1731180386896,0.1476,76472.0,76471.0,0.065348]
[1731180387306,0.34407856,76472.0,76471.0,0.065348]
[1731180391606,0.34407856,76472.0,76468.0,0.06535]
[1731180391803,0.34407856,76472.0,76458.0,0.119058]
[1731180391804,0.0809529,76469.0,76458.0,0.119058]
[1731180391996,0.0809529,76465.0,76459.0,0.065358]
[1731180392202,0.0809529,76465.0,76464.0,0.065354]
[1731180392502,0.27778876,76465.0,76464.0,0.065354]
[1731180395003,0.19683586,76465.0,76464.0,0.065354]
[1731180395393,0.19531036,76466.0,76465.0,0.065353]
[1731180395603,0.3608,76467.0,76458.0,0.0537]
[1731180395808,0.3608,76467.0,76466.0,0.065352]
[1731180396208,0.55611036,76467.0,76466.0,0.065352]
[1731180396410,0.55611036,76467.0,76461.0,0.065356]
[1731180396709,0.0809529,76462.0,76457.0,0.06536]
[1731180396903,0.4417529,76458.0,76457.0,0.06536]
[1731180397298,0.63896136,76458.0,76457.0,0.06536]
[1731180401613,0.55800846,76458.0,76457.0,0.06536]
[1731180401813,0.55800846,76458.0,76457.0,0.1463129]
[1731180403713,0.19720846,76458.0,76457.0,0.1463129]
[1731180404107,0.19642686,76465.0,76464.0,0.065354]
[1731180404313,0.4424729,76467.0,76464.0,0.065354]
[1731180404613,0.1952519,76465.0,76464.0,0.065354]
[1731180405018,0.54678933,76467.0,76464.0,0.065354]
[1731180405319,0.1952519,76465.0,76464.0,0.065354]
[1731180405517,0.19659018,76466.0,76464.0,0.065354]
[1731180405708,0.54674933,76467.0,76464.0,0.065354]
[1731180405909,0.54606933,76467.0,76464.0,0.065354]
[1731180406111,0.19659018,76466.0,76463.0,0.065354]
[1731180406413,0.19659018,76466.0,76457.0,0.0809529]
[1731180406815,0.19659018,76466.0,76465.0,0.065353]
[1731180408007,0.21520642,76466.0,76465.0,0.065353]
[1731180408914,0.19659018,76466.0,76465.0,0.10451884]
[1731180409116,0.19659018,76466.0,76465.0,0.065353]
[1731180409117,0.55739018,76466.0,76465.0,0.065353]
[1731180413616,0.57647019,76466.0,76462.0,0.05222112]
[1731180413813,0.0809529,76463.0,76462.0,0.05222112]
[1731180414010,0.10003291,76463.0,76461.0,0.11757712]
[1731180414213,0.01908001,76462.0,76461.0,0.11757712]
[1731180414622,0.2149507,76462.0,76461.0,0.065356]
[1731180414815,0.5757507,76462.0,76461.0,0.065356]
[1731180415015,0.55667069,76462.0,76461.0,0.065356]
[1731180417014,0.19587069,76462.0,76461.0,0.065356]
[1731180417218,0.55667069,76462.0,76461.0,0.065356]
[1731180417425,0.2153439,76462.0,76461.0,0.065356]
[1731180417627,0.5761439,76462.0,76461.0,0.065356]
[1731180420428,0.72253155,76462.0,76452.0,0.03009236]
[1731180420623,0.0809529,76459.0,76456.0,0.06536]
[1731180420927,0.12113518,76457.0,76456.0,0.06536]
[1731180421225,0.33555184,76457.0,76456.0,0.06536]
[1731180421618,0.33648607,76457.0,76452.0,0.065364]
[1731180421925,0.56288808,76453.0,76452.0,0.065364]
[1731180422129,0.58329552,76453.0,76452.0,0.065364]
[1731180422314,0.77990497,76453.0,76452.0,0.065364]
[1731180423013,0.77990497,76453.0,76452.0,0.10454988]
[1731180423415,0.77990497,76453.0,76452.0,0.065364]
[1731180425227,0.41910497,76453.0,76452.0,0.065364]
[1731180425422,0.77990497,76453.0,76452.0,0.065364]
[1731180429136,0.77990497,76453.0,76450.0,0.03918588]
[1731180429327,0.12113518,76451.0,76450.0,0.03918588]